fUSD/lending_fUSD_20260606
["ID","MTS","AMOUNT","RATE_DAILY","PERIOD"]
[424238747,1780683043000,-4947.1099,0.00014556,2]
[424238727,1780683043000,-500.0,0.00014307,2]
[424238730,1780683043000,-500.0,0.00014307,2]
[424238736,1780683043000,-58382.1598069,0.00014308,2]
[424238744,1780683043000,-166.66,0.00014384,2]
[424238741,1780683043000,-150767.5045018,0.00014308,2]
[424238748,1780683043000,-1019.76924146,0.00014655,5]
[424238738,1780683043000,-167.5244704,0.00014308,2]
[424238740,1780683043000,-4109.1370155,0.00014308,2]
[424238739,1780683043000,-212.96328853,0.00014308,2]
[424238743,1780683043000,-282887.0878017,0.00014308,2]
[424238728,1780683043000,-500.0,0.00014307,2]
[424238749,1780683043000,-1019.76924146,0.00014655,5]
[424238733,1780683043000,-1033.42824635,0.00014307,5]
[424238719,1780683043000,-441.0,0.00014152,2]
[424238734,1780683043000,-911.4,0.00014307,2]
[424238745,1780683043000,-166.67,0.00014425,2]
[424238710,1780683043000,-9.46491055,0.00012806,2]
[424238718,1780683043000,-595.6827887,0.0001415,2]
[424238720,1780683043000,-455.0,0.00014152,2]
[424238722,1780683043000,-255.0,0.00014199,2]
[424238721,1780683043000,-219.80249439,0.00014152,2]
[424238711,1780683043000,-532.93621247,0.00012806,2]
[424238715,1780683043000,-905944.36075956,0.00014107,2]
[424238716,1780683043000,-166.66,0.0001411,2]
[424238713,1780683043000,-500.0,0.00012806,2]
[424238712,1780683043000,-500.0,0.00012806,2]
[424238717,1780683043000,-600.0,0.0001415,2]
[424238714,1780683043000,-594.36906799,0.00013699,2]
[424238723,1780683043000,-16629.28145878,0.00014207,2]
[424238724,1780683043000,-3316.33441098,0.00014208,2]
[424238726,1780683043000,-500.0,0.00014307,2]
[424238725,1780683043000,-166.66,0.00014247,2]
[424238735,1780683043000,-228.2898135,0.00014308,2]
[424238746,1780683043000,-559.43864532,0.00014474,2]
[424238760,1780683043000,-500.0,0.00014655,2]
[424238750,1780683043000,-1026.59874391,0.00014655,5]
[424238769,1780683043000,-195.15,0.00014655,2]
[424238766,1780683043000,-500.0,0.00014655,2]
[424238772,1780683043000,-500.0,0.00014655,2]
[424238768,1780683043000,-500.0,0.00014655,2]
[424238778,1780683043000,-500.0,0.00014655,2]
[424238790,1780683043000,-1254.15792768,0.000147,2]
[424238779,1780683043000,-500.0,0.00014655,2]
[424238791,1780683043000,-2000.0,0.00014724,2]
[424238770,1780683043000,-150.0,0.00014655,2]
[424238780,1780683043000,-500.0,0.00014655,2]
[424238787,1780683043000,-911.4,0.00014655,2]
[424238789,1780683043000,-4273.38014327,0.00014687,2]
[424238788,1780683043000,-911.4,0.00014655,2]
[424238784,1780683043000,-911.4,0.00014655,2]
[424238786,1780683043000,-911.4,0.00014655,2]
[424238783,1780683043000,-911.4,0.00014655,2]
[424238785,1780683043000,-911.4,0.00014655,2]
[424238752,1780683043000,-1023.63214271,0.00014655,5]
[424238782,1780683043000,-500.0,0.00014655,2]
[424238767,1780683043000,-500.0,0.00014655,2]
[424238781,1780683043000,-500.0,0.00014655,2]
[424238773,1780683043000,-500.0,0.00014655,2]
[424238754,1780683043000,-500.0,0.00014655,2]
[424238753,1780683043000,-199.19886557,0.00014655,5]
[424238763,1780683043000,-500.0,0.00014655,2]
[424238759,1780683043000,-500.0,0.00014655,2]
[424238755,1780683043000,-280.98979946,0.00014655,2]
[424238756,1780683043000,-500.0,0.00014655,2]
[424238751,1780683043000,-1026.59874391,0.00014655,5]
[424238761,1780683043000,-500.0,0.00014655,2]
[424238757,1780683043000,-500.0,0.00014655,2]
[424238758,1780683043000,-500.0,0.00014655,2]
[424238765,1780683043000,-500.0,0.00014655,2]
[424238774,1780683043000,-500.0,0.00014655,2]
[424238764,1780683043000,-500.0,0.00014655,2]
[424238775,1780683043000,-500.0,0.00014655,2]
[424238776,1780683043000,-500.0,0.00014655,2]
[424238777,1780683043000,-500.0,0.00014655,2]
[424238762,1780683043000,-500.0,0.00014655,2]
[424238771,1780683043000,-500.0,0.00014655,2]
[424238826,1780683044000,-453.57540836,0.00014829,2]
[424238840,1780683044000,-1000.0,0.00014901,2]
[424238834,1780683044000,-25000.0,0.00014865,3]
[424238825,1780683044000,-1000.0,0.00014829,2]
[424238823,1780683044000,-176.30161127,0.00014829,2]
[424238831,1780683044000,-25000.0,0.00014856,3]
[424238822,1780683044000,-612.2,0.000148,2]
[424238824,1780683044000,-1000.0,0.00014829,2]
[424238820,1780683044000,-911.4,0.00014755,2]
[424238833,1780683044000,-3316.33441097,0.00014863,2]
[424238818,1780683044000,-911.4,0.00014755,2]
[424238821,1780683044000,-2500000.0,0.00014756,2]
[424238838,1780683044000,-911.4,0.00014899,2]
[424238845,1780683044000,-300.0,0.00014999,2]
[424238841,1780683044000,-200.0,0.00014995,2]
[424238837,1780683044000,-25000.0,0.00014891,3]
[424238835,1780683044000,-25000.0,0.00014874,3]
[424238842,1780683044000,-200.0,0.00014995,2]
[424238836,1780683044000,-25000.0,0.00014882,3]
[424238839,1780683044000,-25000.0,0.000149,3]
[424238844,1780683044000,-670.46851618,0.00014999,2]
[424238858,1780683044000,-176.25898095,0.00015,2]
[424238848,1780683044000,-500.0,0.00015,2]
[424238849,1780683044000,-389.68042047,0.00015,2]
[424238857,1780683044000,-389.68042047,0.00015,3]
[424238829,1780683044000,-20955.65956575,0.00014847,3]
[424238843,1780683044000,-300.0,0.00014999,2]
[424238827,1780683044000,-200.0,0.00014847,2]
[424238798,1780683044000,-500.0,0.00014755,2]
[424238819,1780683044000,-911.4,0.00014755,2]
[424238847,1780683044000,-299.42093481,0.00015,2]
[424238792,1780683044000,-500.0,0.00014747,2]
[424238794,1780683044000,-500.0,0.00014755,2]
[424238804,1780683044000,-500.0,0.00014755,2]
[424238796,1780683044000,-500.0,0.00014755,2]
[424238793,1780683044000,-500.0,0.00014755,2]
[424238805,1780683044000,-500.0,0.00014755,2]
[424238797,1780683044000,-500.0,0.00014755,2]
[424238795,1780683044000,-500.0,0.00014755,2]
[424238800,1780683044000,-500.0,0.00014755,2]
[424238801,1780683044000,-500.0,0.00014755,2]
[424238802,1780683044000,-250.0,0.00014755,2]
[424238828,1780683044000,-200.0,0.00014847,2]
[424238799,1780683044000,-500.0,0.00014755,2]
[424238807,1780683044000,-500.0,0.00014755,2]
[424238817,1780683044000,-911.4,0.00014755,2]
[424238808,1780683044000,-177.31164547,0.00014755,2]
[424238811,1780683044000,-911.4,0.00014755,2]
[424238813,1780683044000,-911.4,0.00014755,2]
[424238806,1780683044000,-500.0,0.00014755,2]
[424238809,1780683044000,-485.98003348,0.00014755,2]
[424238812,1780683044000,-911.4,0.00014755,2]
[424238815,1780683044000,-911.4,0.00014755,2]
[424238814,1780683044000,-911.4,0.00014755,2]
[424238810,1780683044000,-911.4,0.00014755,2]
[424238816,1780683044000,-911.4,0.00014755,2]
[424238803,1780683044000,-500.0,0.00014755,2]
[424238846,1780683044000,-666.0,0.00014999,2]
[424238910,1780683044000,-1513.0,0.00017,2]
[424238850,1780683044000,-500.0,0.00015,2]
[424238883,1780683044000,-300.0,0.00016,2]
[424238898,1780683044000,-169.62,0.00016475,2]
[424238887,1780683044000,-1500.0,0.00016044,2]
[424238897,1780683044000,-169.62,0.00016475,2]
[424238899,1780683044000,-169.62,0.00016475,2]
[424238886,1780683044000,-4273.38014327,0.0001604,2]
[424238894,1780683044000,-2000.0,0.0001636,2]
[424238891,1780683044000,-166.66,0.00016179,2]
[424238895,1780683044000,-3198.6,0.00016438,2]
[424238892,1780683044000,-660.83068784,0.000162,2]
[424238890,1780683044000,-3316.33441097,0.00016172,2]
[424238889,1780683044000,-9999.99,0.00016116,2]
[424238885,1780683044000,-500.0,0.00016027,2]
[424238888,1780683044000,-660.83068784,0.000161,2]
[424238896,1780683044000,-900.0,0.00016438,2]
[424238905,1780683044000,-4273.38014327,0.00016717,2]
[424238900,1780683044000,-1555.5,0.00016592,2]
[424238907,1780683044000,-3316.33441097,0.00016827,2]
[424238909,1780683044000,-281.63,0.000169,2]
[424238911,1780683044000,-475.61887377,0.00017015,2]
[424238901,1780683044000,-559.43864532,0.00016605,2]
[424238904,1780683044000,-168.29,0.00016712,2]
[424238908,1780683044000,-786.28,0.000169,2]
[424238852,1780683044000,-500.0,0.00015,2]
[424238902,1780683044000,-307.863552,0.00016712,2]
[424238906,1780683044000,-612.2,0.000168,2]
[424238893,1780683044000,-3268.08635751,0.00016299,2]
[424238882,1780683044000,-215.77576141,0.00016,3]
[424238903,1780683044000,-736.0,0.00016712,2]
[424238881,1780683044000,-150.0,0.000159,2]
[424238854,1780683044000,-500.0,0.00015,2]
[424238853,1780683044000,-500.0,0.00015,2]
[424238855,1780683044000,-169.04126141,0.00015,2]
[424238856,1780683044000,-500.0,0.00015,3]
[424238859,1780683044000,-500.0,0.00015,2]
[424238861,1780683044000,-292.03023792,0.00015,2]
[424238864,1780683044000,-900.0,0.00015068,2]
[424238863,1780683044000,-614.0,0.00015068,2]
[424238860,1780683044000,-205.03592378,0.00015,3]
[424238851,1780683044000,-500.0,0.00015,2]
[424238862,1780683044000,-194.68682528,0.00015,2]
[424238865,1780683044000,-500.0,0.00015068,2]
[424238866,1780683044000,-200.0,0.00015145,2]
[424238867,1780683044000,-200.0,0.00015145,2]
[424238868,1780683044000,-166.66,0.00015262,2]
[424238872,1780683044000,-433.0,0.00015403,2]
[424238871,1780683044000,-4273.38014327,0.00015363,2]
[424238869,1780683044000,-200.0,0.00015297,2]
[424238870,1780683044000,-200.0,0.00015297,2]
[424238873,1780683044000,-3316.33441097,0.00015517,2]
[424238875,1780683044000,-166.66,0.0001572,2]
[424238876,1780683044000,-614.0,0.0001589,2]
[424238877,1780683044000,-150.0,0.000159,2]
[424238878,1780683044000,-150.0,0.000159,2]
[424238879,1780683044000,-150.0,0.000159,2]
[424238874,1780683044000,-166.67,0.00015525,2]
[424238880,1780683044000,-150.0,0.000159,2]
[424238884,1780683044000,-660.83068784,0.00016,2]
[424238913,1780683045000,-1613.0535,0.0001714,2]
[424238915,1780683045000,-296.15611807,0.00017393,2]
[424238914,1780683045000,-764.96556832,0.00017393,2]
[424238912,1780683045000,-202.85112623,0.00017015,2]
[424238918,1780683046000,-2288.53658344,0.00017393,2]
[424238917,1780683046000,-151.0,0.00017393,2]
[424238916,1780683046000,-151.0,0.00017393,2]
[424238986,1780684232000,-3323.28709071,0.00013287,2]
[424238982,1780684232000,-999.99,0.00013251,2]
[424239020,1780684232000,-3323.28709071,0.00013527,2]
[424238985,1780684232000,-464.07,0.00013271,2]
[424238981,1780684232000,-9999.99,0.00013251,2]
[424238983,1780684232000,-24999.99,0.00013251,2]
[424238996,1780684232000,-3323.28709071,0.00013401,2]
[424239000,1780684232000,-3323.28709071,0.00013447,2]
[424238998,1780684232000,-3323.28709071,0.00013425,2]
[424239013,1780684232000,-150.0,0.00013488,2]
[424239011,1780684232000,-150.0,0.00013488,2]
[424239009,1780684232000,-150.0,0.00013488,2]
[424239004,1780684232000,-24104.33,0.00013479,2]
[424238984,1780684232000,-150.99,0.00013251,2]
[424239007,1780684232000,-150.0,0.00013488,2]
[424239002,1780684232000,-3323.28709071,0.00013469,2]
[424239014,1780684232000,-150.0,0.00013488,2]
[424239016,1780684232000,-3323.28709071,0.00013489,2]
[424239017,1780684232000,-2000.0,0.000135,2]
[424239018,1780684232000,-378.93,0.000135,2]
[424239006,1780684232000,-150.0,0.00013488,2]
[424238980,1780684232000,-3323.28709071,0.00013251,2]
[424238975,1780684232000,-3323.28709071,0.00013207,2]
[424238994,1780684232000,-3323.28709071,0.00013376,2]
[424239030,1780684232000,-3323.28709071,0.00013658,2]
[424238963,1780684232000,-400.10274746,0.00012736,2]
[424238962,1780684232000,-340.42,0.00012703,2]
[424238961,1780684232000,-659.58,0.00012703,2]
[424238964,1780684232000,-632.38,0.0001277,2]
[424238965,1780684232000,-150.0,0.0001301,2]
[424238966,1780684232000,-299.85073794,0.00013149,2]
[424238971,1780684232000,-280.46985694,0.00013149,2]
[424238972,1780684232000,-3189.6633862,0.0001315,2]
[424238976,1780684232000,-3631.07,0.0001325,2]
[424238974,1780684232000,-218.73,0.000132,2]
[424238973,1780684232000,-133.62370451,0.0001315,2]
[424238977,1780684232000,-4999.99,0.0001325,2]
[424238967,1780684232000,-500.0,0.00013149,2]
[424238968,1780684232000,-217.72753598,0.00013149,2]
[424238969,1780684232000,-500.0,0.00013149,2]
[424238970,1780684232000,-217.22572338,0.00013149,2]
[424238979,1780684232000,-9999.99,0.0001325,2]
[424238978,1780684232000,-299.99,0.0001325,2]
[424238988,1780684232000,-3323.28709071,0.0001332,2]
[424238990,1780684232000,-3323.28709071,0.00013349,2]
[424238992,1780684232000,-150.0,0.00013366,2]
[424239031,1780684232000,-3323.28709071,0.00013672,2]
[424239057,1780684232000,-3323.28709071,0.00013849,2]
[424239022,1780684232000,-3323.28709071,0.00013563,2]
[424239050,1780684232000,-6042.33670899,0.00013807,2]
[424239056,1780684232000,-3323.28709071,0.00013838,2]
[424239051,1780684232000,-3547.56227819,0.00013807,2]
[424239053,1780684232000,-3323.28709071,0.00013815,2]
[424239049,1780684232000,-3323.28709071,0.00013803,2]
[424239054,1780684232000,-3323.28709071,0.00013827,2]
[424239055,1780684232000,-166.66,0.00013836,2]
[424239058,1780684232000,-3323.28709071,0.00013861,2]
[424239059,1780684232000,-150.0,0.00013862,2]
[424239047,1780684232000,-3323.28709071,0.00013791,2]
[424239060,1780684232000,-150.0,0.00013862,2]
[424239062,1780684232000,-3323.28709071,0.00013883,2]
[424239061,1780684232000,-3323.28709071,0.00013872,2]
[424239066,1780684232000,-250.0,0.00013904,2]
[424239065,1780684232000,-3323.28709071,0.00013904,2]
[424239064,1780684232000,-161.03491528,0.00013896,2]
[424239067,1780684232000,-104259.74868027,0.00013906,2]
[424239063,1780684232000,-3323.28709071,0.00013894,2]
[424239068,1780684232000,-11511.60992184,0.00013906,2]
[424239023,1780684232000,-3323.28709071,0.0001358,2]
[424239069,1780684232000,-9262.90087722,0.00013906,2]
[424239048,1780684232000,-1513.0,0.000138,2]
[424239052,1780684232000,-150.0,0.00013809,2]
[424239045,1780684232000,-3323.28709071,0.00013766,2]
[424239019,1780684232000,-3323.28709071,0.00013508,2]
[424239026,1780684232000,-3323.28709071,0.00013612,2]
[424239021,1780684232000,-3323.28709071,0.00013545,2]
[424239046,1780684232000,-3323.28709071,0.00013779,2]
[424239024,1780684232000,-150.0,0.00013595,2]
[424239029,1780684232000,-3323.28709071,0.00013643,2]
[424239027,1780684232000,-150.0,0.00013613,2]
[424239028,1780684232000,-3323.28709071,0.00013628,2]
[424239032,1780684232000,-150.0,0.00013675,2]
[424239035,1780684232000,-166.66,0.00013699,2]
[424239043,1780684232000,-3323.28709071,0.00013741,2]
[424239025,1780684232000,-3323.28709071,0.00013596,2]
[424239034,1780684232000,-200.0,0.00013699,2]
[424239038,1780684232000,-150.0,0.00013702,2]
[424239037,1780684232000,-150.0,0.00013702,2]
[424239041,1780684232000,-150.0,0.00013737,2]
[424239039,1780684232000,-3323.28709071,0.00013714,2]
[424239036,1780684232000,-3323.28709071,0.000137,2]
[424239042,1780684232000,-150.0,0.00013737,2]
[424239044,1780684232000,-3323.28709071,0.00013753,2]
[424239040,1780684232000,-3323.28709071,0.00013727,2]
[424239033,1780684232000,-3323.28709071,0.00013687,2]
[424239070,1780684233000,-43732.41891237,0.00013906,2]
[424239071,1780684233000,-3597.63531375,0.00013906,2]
[424239078,1780684238000,-538.715813,0.00013906,2]
[424239079,1780684238000,-6161.67581818,0.00013906,2]
[424239081,1780684238000,-382.41662952,0.00013906,2]
[424239080,1780684238000,-20503.00384075,0.00013906,2]
[424239093,1780684240000,-2004.03347049,0.00013907,2]
[424239086,1780684240000,-1004.94152925,0.00013906,2]
[424239088,1780684240000,-14625.08774486,0.00013906,2]
[424239087,1780684240000,-3895.61839148,0.00013906,2]
[424239089,1780684240000,-3374.69719035,0.00013906,2]
[424239090,1780684240000,-352097.60928608,0.00013906,2]
[424239091,1780684240000,-19707.99964549,0.00013906,2]
[424239095,1780684240000,-4947.1099,0.00013907,2]
[424239100,1780684240000,-5816.717,0.00013928,2]
[424239092,1780684240000,-905343.92040559,0.00013906,2]
[424239097,1780684240000,-150.0,0.00013916,2]
[424239094,1780684240000,-197.87818747,0.00013907,2]
[424239096,1780684240000,-3323.28709071,0.00013915,2]
[424239109,1780684240000,-166.66,0.00013973,2]
[424239108,1780684240000,-3323.28709071,0.00013966,2]
[424239103,1780684240000,-6126.61,0.00013929,2]
[424239106,1780684240000,-3323.28709071,0.00013956,2]
[424239105,1780684240000,-3323.28709071,0.00013946,2]
[424239101,1780684240000,-320.925,0.00013928,2]
[424239104,1780684240000,-3323.28709071,0.00013936,2]
[424239102,1780684240000,-6042.33670895,0.00013928,2]
[424239099,1780684240000,-3323.28709071,0.00013925,2]
[424239098,1780684240000,-150.0,0.00013916,2]
[424239107,1780684240000,-3547.56227815,0.00013963,2]
[424239151,1780684241000,-1019.76924146,0.00014006,5]
[424239146,1780684241000,-500.0,0.00014006,2]
[424239150,1780684241000,-1026.59874391,0.00014006,5]
[424239148,1780684241000,-1023.63214271,0.00014006,5]
[424239149,1780684241000,-1026.59874391,0.00014006,5]
[424239145,1780684241000,-500.0,0.00014006,2]
[424239144,1780684241000,-500.0,0.00014006,2]
[424239142,1780684241000,-500.0,0.00014006,2]
[424239152,1780684241000,-1019.76924146,0.00014006,5]
[424239156,1780684241000,-500.0,0.00014006,2]
[424239154,1780684241000,-150.0,0.00014006,2]
[424239147,1780684241000,-195.15,0.00014006,2]
[424239157,1780684241000,-190.18,0.00014006,2]
[424239168,1780684241000,-500.0,0.00014006,2]
[424239158,1780684241000,-1033.42824635,0.00014006,5]
[424239169,1780684241000,-500.0,0.00014006,2]
[424239162,1780684241000,-500.0,0.00014006,2]
[424239143,1780684241000,-199.19886557,0.00014006,5]
[424239161,1780684241000,-500.0,0.00014006,2]
[424239160,1780684241000,-500.0,0.00014006,2]
[424239163,1780684241000,-500.0,0.00014006,2]
[424239167,1780684241000,-500.0,0.00014006,2]
[424239166,1780684241000,-485.98003348,0.00014006,2]
[424239165,1780684241000,-500.0,0.00014006,2]
[424239164,1780684241000,-500.0,0.00014006,2]
[424239171,1780684241000,-500.0,0.00014006,2]
[424239179,1780684241000,-500.0,0.00014007,2]
[424239159,1780684241000,-500.0,0.00014006,2]
[424239138,1780684241000,-500.0,0.00014006,2]
[424239140,1780684241000,-500.0,0.00014006,2]
[424239137,1780684241000,-500.0,0.00014006,2]
[424239182,1780684241000,-150.0,0.00014023,2]
[424239111,1780684241000,-595.6827887,0.00013974,2]
[424239113,1780684241000,-3323.28709071,0.00013976,2]
[424239112,1780684241000,-300.0,0.00013974,2]
[424239110,1780684241000,-600.0,0.00013974,2]
[424239114,1780684241000,-3323.28709071,0.00013986,2]
[424239115,1780684241000,-150.0,0.00013987,2]
[424239124,1780684241000,-258.0,0.00014006,2]
[424239126,1780684241000,-500.0,0.00014006,2]
[424239128,1780684241000,-500.0,0.00014006,2]
[424239125,1780684241000,-500.0,0.00014006,2]
[424239127,1780684241000,-500.0,0.00014006,2]
[424239119,1780684241000,-3323.28709071,0.00014005,2]
[424239121,1780684241000,-500.0,0.00014006,2]
[424239120,1780684241000,-500.0,0.00014006,2]
[424239123,1780684241000,-500.0,0.00014006,2]
[424239122,1780684241000,-500.0,0.00014006,2]
[424239117,1780684241000,-3323.28709071,0.00013995,2]
[424239118,1780684241000,-250.0,0.00014,2]
[424239116,1780684241000,-150.0,0.00013987,2]
[424239129,1780684241000,-500.0,0.00014006,2]
[424239130,1780684241000,-500.0,0.00014006,2]
[424239135,1780684241000,-500.0,0.00014006,2]
[424239136,1780684241000,-500.0,0.00014006,2]
[424239134,1780684241000,-500.0,0.00014006,2]
[424239141,1780684241000,-182.69,0.00014006,2]
[424239133,1780684241000,-500.0,0.00014006,2]
[424239132,1780684241000,-500.0,0.00014006,2]
[424239131,1780684241000,-500.0,0.00014006,2]
[424239139,1780684241000,-500.0,0.00014006,2]
[424239181,1780684241000,-3323.28709071,0.00014014,2]
[424239176,1780684241000,-500.0,0.00014006,2]
[424239180,1780684241000,-10000.0,0.00014007,2]
[424239208,1780684241000,-500.0,0.00014106,2]
[424239210,1780684241000,-177.31164547,0.00014106,2]
[424239215,1780684241000,-255.0,0.00014116,2]
[424239209,1780684241000,-500.0,0.00014106,2]
[424239214,1780684241000,-3323.28709071,0.00014113,2]
[424239217,1780684241000,-3323.28709071,0.00014122,2]
[424239213,1780684241000,-150.0,0.00014112,2]
[424239212,1780684241000,-166.66,0.0001411,2]
[424239218,1780684241000,-150.0,0.0001413,2]
[424239219,1780684241000,-150.0,0.0001413,2]
[424239216,1780684241000,-3547.56227815,0.00014119,2]
[424239228,1780684241000,-3323.28709071,0.0001418,2]
[424239227,1780684241000,-3323.28709071,0.00014172,2]
[424239211,1780684241000,-150.52082757,0.00014107,2]
[424239229,1780684241000,-3323.28709071,0.00014188,2]
[424239221,1780684241000,-3323.28709071,0.00014139,2]
[424239224,1780684241000,-3323.28709071,0.00014156,2]
[424239222,1780684241000,-17260.17174266,0.00014144,2]
[424239226,1780684241000,-6042.33670895,0.00014171,2]
[424239225,1780684241000,-3323.28709071,0.00014164,2]
[424239223,1780684241000,-3323.28709071,0.00014147,2]
[424239233,1780684241000,-3323.28709071,0.0001422,2]
[424239231,1780684241000,-3323.28709071,0.00014204,2]
[424239234,1780684241000,-3323.28709071,0.00014228,2]
[424239235,1780684241000,-3323.28709071,0.00014236,2]
[424239232,1780684241000,-3323.28709071,0.00014212,2]
[424239236,1780684241000,-150.0,0.00014237,2]
[424239170,1780684241000,-500.0,0.00014006,2]
[424239230,1780684241000,-3323.28709071,0.00014196,2]
[424239198,1780684241000,-3323.28709071,0.00014078,2]
[424239220,1780684241000,-3323.28709071,0.0001413,2]
[424239199,1780684241000,-3323.28709071,0.00014087,2]
[424239173,1780684241000,-500.0,0.00014006,2]
[424239203,1780684241000,-500.0,0.00014106,2]
[424239172,1780684241000,-500.0,0.00014006,2]
[424239175,1780684241000,-500.0,0.00014006,2]
[424239174,1780684241000,-500.0,0.00014006,2]
[424239178,1780684241000,-205.76663207,0.00014006,2]
[424239177,1780684241000,-250.0,0.00014006,2]
[424239183,1780684241000,-3323.28709071,0.00014024,2]
[424239194,1780684241000,-215.77576141,0.00014051,2]
[424239186,1780684241000,-3323.28709071,0.00014042,2]
[424239185,1780684241000,-194.09368115,0.00014037,2]
[424239193,1780684241000,-6042.33670895,0.0001405,2]
[424239187,1780684241000,-300.0,0.00014047,2]
[424239190,1780684241000,-300.0,0.00014047,2]
[424239184,1780684241000,-3323.28709071,0.00014033,2]
[424239188,1780684241000,-300.0,0.00014047,2]
[424239202,1780684241000,-3323.28709071,0.00014105,2]
[424239189,1780684241000,-300.0,0.00014047,2]
[424239197,1780684241000,-3323.28709071,0.0001407,2]
[424239200,1780684241000,-3323.28709071,0.00014096,2]
[424239207,1780684241000,-425.80778009,0.00014106,2]
[424239204,1780684241000,-500.0,0.00014106,2]
[424239206,1780684241000,-500.0,0.00014106,2]
[424239201,1780684241000,-763.55,0.000141,2]
[424239205,1780684241000,-500.0,0.00014106,2]
[424239196,1780684241000,-3323.28709071,0.00014061,2]
[424239191,1780684241000,-160.0,0.00014048,2]
[424239192,1780684241000,-150.0,0.0001405,2]
[424239195,1780684241000,-3323.28709071,0.00014051,2]
[424239275,1780684242000,-150.0,0.00014451,2]
[424239273,1780684242000,-150.0,0.00014424,2]
[424239274,1780684242000,-3547.56227815,0.00014432,2]
[424239276,1780684242000,-150.0,0.00014487,2]
[424239278,1780684242000,-5530.0,0.000145,3]
[424239277,1780684242000,-150.0,0.00014487,2]
[424239270,1780684242000,-166.66,0.00014384,2]
[424239271,1780684242000,-2004.03347048,0.00014404,2]
[424239281,1780684242000,-150.0,0.00014558,2]
[424239269,1780684242000,-500.0,0.00014384,2]
[424239280,1780684242000,-150.0,0.00014558,2]
[424239282,1780684242000,-3547.56227815,0.00014588,2]
[424239272,1780684242000,-6042.33670895,0.00014414,2]
[424239284,1780684242000,-150.0,0.00014612,2]
[424239295,1780684242000,-150.0,0.00014737,2]
[424239285,1780684242000,-2091.56,0.00014655,2]
[424239283,1780684242000,-150.0,0.00014612,2]
[424239287,1780684242000,-2091.56,0.00014655,2]
[424239288,1780684242000,-2091.56,0.00014655,2]
[424239291,1780684242000,-6042.33670895,0.00014657,2]
[424239294,1780684242000,-500.0,0.00014685,2]
[424239290,1780684242000,-2091.56,0.00014655,2]
[424239289,1780684242000,-2091.56,0.00014655,2]
[424239293,1780684242000,-150.0,0.00014665,2]
[424239292,1780684242000,-410.21055436,0.00014664,2]
[424239296,1780684242000,-150.0,0.00014737,2]
[424239306,1780684242000,-2091.56,0.00014755,2]
[424239279,1780684242000,-6042.33670895,0.00014536,2]
[424239286,1780684242000,-2091.56,0.00014655,2]
[424239258,1780684242000,-3323.28709071,0.00014333,2]
[424239237,1780684242000,-150.0,0.00014237,2]
[424239260,1780684242000,-150.0,0.00014344,2]
[424239307,1780684242000,-2091.56,0.00014755,2]
[424239238,1780684242000,-150.0,0.00014237,2]
[424239240,1780684242000,-150.0,0.00014237,2]
[424239241,1780684242000,-3323.28709071,0.00014243,2]
[424239239,1780684242000,-150.0,0.00014237,2]
[424239242,1780684242000,-166.66,0.00014247,2]
[424239243,1780684242000,-3323.28709071,0.00014251,2]
[424239244,1780684242000,-3323.28709071,0.00014259,2]
[424239245,1780684242000,-3323.28709071,0.00014266,2]
[424239247,1780684242000,-3547.56227815,0.00014275,2]
[424239246,1780684242000,-3323.28709071,0.00014274,2]
[424239248,1780684242000,-3323.28709071,0.00014281,2]
[424239250,1780684242000,-6042.33670895,0.00014293,2]
[424239249,1780684242000,-3323.28709071,0.00014289,2]
[424239252,1780684242000,-3323.28709071,0.00014304,2]
[424239253,1780684242000,-2091.56,0.00014307,2]